Cogmind - Beta 17 @@@ ROGUE MODE // 2026.06.29 @ 17:39:23 Player: Pitt Result: Destroyed by Y-45 Defender with Heavy Assault Rifle Performance ------------- Evolutions (1) 500 Regions Visited (3) 600 Robots Destroyed (51) 255 Value Destroyed (791) 791 Prototype IDs (0) 0 Alien Tech Used (0) 0 Bonus (20) 20 TOTAL SCORE: 2166 Bonus ------- High Alert Combat Kills 20 Cogmind --------- Core Integrity 0/400 Matter 9/300 Energy 92/100 System Corruption 1% Temperature Cool (0) Movement Core (50) Location -9/Materials Parts ------- > --- POWER (1) -------- (None) > --- PROPULSION (3) --- (None) > --- UTILITY (3) ------ (None) > --- WEAPON (2) ------- Datajack > --- INVENTORY (5) ---- Sensor Array Improved Terrain Scanner Light Assault Rifle Light Cannon Mining Laser Peak State ------------ > --- POWER ------------ Light Ion Engine > --- PROPULSION ------- Improved Treads Improved Treads Wheel > --- UTILITY ---------- Small Storage Unit Sensor Array Seismic Detector > --- WEAPON ----------- Beam Rifle Light Cannon > --- INVENTORY -------- Light Ion Engine Wheel Improved Terrain Scanner Assault Rifle Light Assault Rifle Grenade Launcher Datajack Mining Laser [Rating: 13] Favorites ----------- Power Light Ion Engine Engine Light Ion Engine Propulsion Wheel Treads Improved Treads Leg Aluminum Leg Wheel Wheel Utility Improved Terrain Scanner Device Improved Terrain Scanner Storage Small Storage Unit Protection Light Armor Plating Weapon Light Assault Rifle Energy Gun Beam Rifle Ballistic Gun Light Assault Rifle Ballistic Cannon Light Cannon Launcher Grenade Launcher Special Weapon Mining Laser Special Melee Weapon Datajack Build | -11 -10 -10 -9 ------- Run | Yrd Mat Min Mat Slots Evolved 2 | . . . 2 Power . | . . . . Propulsion 1 | . . . 1 Utility 1 | . . . 1 Weapon . | . . . . Parts Attached 22 | 8 4 2 8 Power 2 | 1 . 1 . Engine 2 | 1 . 1 . Core . | . . . . Reactor . | . . . . Propulsion 7 | 3 1 . 3 Treads 2 | . . . 2 Leg 1 | 1 . . . Wheel 4 | 2 1 . 1 Hover . | . . . . Flight . | . . . . Utility 5 | 2 1 1 1 Device 3 | 2 . 1 . Storage 1 | . 1 . . Processor . | . . . . Hackware . | . . . . Protection 1 | . . . 1 Artifact . | . . . . Weapon 8 | 2 2 . 4 Energy Gun 1 | . . . 1 Energy Cannon . | . . . . Ballistic Gun 2 | 2 . . . Ballistic Cannon 2 | . . . 2 Launcher 1 | . 1 . . Special Weapon 1 | . 1 . . Impact Weapon . | . . . . Slashing Weapon . | . . . . Piercing Weapon . | . . . . Special Melee Weapon 1 | . . . 1 Unidentified Prototypes . | . . . . Parts Lost 7 | . . . 7 Power 1 | . . . 1 Propulsion 2 | . . . 2 Utility 2 | . . . 2 Weapon 2 | . . . 2 Highest Loss Streak 7 | . . . 7 To Critical Strikes . | . . . . Average Backups 5 | 2 5 7 7 Power . | . 1 1 1 Propulsion 1 | 2 1 1 . Utility 1 | . 1 2 1 Weapon 2 | . 1 2 3 Tool/Special . | . . . . Unused Backups 2 | 1 . . 1 Power 1 | . . . 1 Propulsion . | . . . . Utility . | . . . . Weapon 1 | 1 . . . Tool/Special . | . . . . Average Slot Usage (%) 96 | . 100 100 89 Engine 12 | . 14 14 10 Treads 4 | . . . 14 Wheel 23 | . 28 28 13 Device 18 | . 24 14 16 Storage 9 | . 3 14 11 Energy Gun 1 | . . . 3 Ballistic Gun 17 | . 25 18 5 Ballistic Cannon 2 | . . . 7 Launcher 4 | . 1 9 1 Peak Build Rating 13 | 9 9 9 13 Average Rating 9 | 7 9 8 10 On Entrance 6 | . 9 9 7 Avg Prop Armor Cover (%) 9 | . . . 9 Naked Turns . | . . . . Heaviest Build 18 | 8 14 13 18 Greatest Support 46 | 26 26 20 46 Greatest Overweight (x) 1 | . . . 1 Average Overweight (x) . | . . . . Largest Inventory Capacity 8 | 5 8 8 8 Average Capacity 6 | 5 5 8 7 Most Carried 8 | 5 7 8 8 Average Carried 5 | 3 5 7 7 Final Capacity 8 | 5 8 8 5 Final Carried 7 | 5 7 7 5 Class Distribution -------------------- 88% | Mutant 11% | Scavenger-Mutant Dominant Class ---------------- Mutant | -10/Materials Mutant | -10/Mines Mutant | -9/Materials Resources | -11 -10 -10 -9 ----------- Run | Yrd Mat Min Mat Matter Collected 608 | 404 . 16 188 Remotely . | . . . . Salvage Created 905 | 302 67 30 506 Parts 90 | 26 6 7 51 Haulers Intercepted . | . . . . Recyclers Shooed 3 | 1 . . 2 Parts Field Recycled . | . . . . Retrieved Matter . | . . . . Parts Self-Destructed . | . . . . Prevented . | . . . . Parts Restored . | . . . . Kills | -11 -10 -10 -9 ------- Run | Yrd Mat Min Mat Combat Hostiles Destroyed 34 | . 8 3 23 Guns 4 | . . . 4 Cannons 5 | . . . 5 AOE 25 | . 8 3 14 Classes Destroyed 8 | 3 2 1 2 Worker 3 | 2 . . 1 Builder 3 | . . 1 2 Tunneler 8 | 8 . . . Recycler 2 | 1 . . 1 Watcher 1 | . . . 1 Swarmer 23 | . 6 3 14 Grunt 9 | . 2 . 7 Sentry 2 | . . . 2 Best Kill Streak 9 | 5 8 3 9 Combat Bots Only 8 | . 8 3 6 Max Kills in Single Turn 4 | 1 2 2 4 Gunslinging . | . . . . Exploded 3 | . 2 2 3 Melee . | . . . . Uniques/NPCs Destroyed . | . . . . Combat | -11 -10 -10 -9 -------- Run | Yrd Mat Min Mat Hostile Shots Fired 154 | . 14 2 138 Missed 45 | . 8 . 37 Hits 109 | . 6 2 101 Projectile 109 | . 6 2 101 Critical Strikes 3 | . . . 3 Damage Taken 1355 | . 54 50 1251 Core 439 | . 18 9 412 Absorbed by Shields . | . . . . Core Remaining (%) 94 | 100 . 89 . Volleys Fired 84 | 31 8 4 41 Largest 2 | 2 1 2 2 Hottest 100 | 40 100 40 86 Shots Fired 130 | 62 8 6 54 Gun 87 | 62 . 4 21 Cannon 22 | . . . 22 Launcher 20 | . 7 2 11 Special 1 | . 1 . . Kinetic 88 | 62 . 4 22 Thermal 22 | . 1 . 21 Explosive 20 | . 7 2 11 Electromagnetic . | . . . . Robot Hit Streak 6 | 6 5 2 5 Robot Miss Streak 6 | 6 1 2 3 Penetration Max . | . . . . Secondary Targets . | . . . . Shots Hit Robots 64 | 28 4 3 29 Core Hits 68 | 14 12 6 36 Critical Kills . | . . . . Critical Parts Destroyed . | . . . . Critical Strikes 3 | . . . 3 Burn 1 | . . . 1 Blast 2 | . . . 2 Melee Attacks 3 | . . . 3 Impact . | . . . . Slashing . | . . . . Piercing . | . . . . Sneak Attacks 1 | . . . 1 Combat Hostiles . | . . . . Follow-up Attacks . | . . . . Damage Inflicted 2416 | 313 470 146 1487 Guns 476 | 313 . 20 143 Cannons 264 | . . . 264 Explosions 1650 | . 470 126 1054 Melee . | . . . . Ramming 26 | . . . 26 Kinetic 597 | 313 . 20 264 Thermal 151 | . . . 151 Explosive 1606 | . 470 126 1010 Electromagnetic 36 | . . . 36 Impact . | . . . . Slashing . | . . . . Piercing . | . . . . Highest Corruption 1 | . . . 1 Average Corruption 1 | . . . 1 Corruption Purged . | . . . . Corruption Blocked . | . . . . Effects 2 | . . . 2 Message Errors 1 | . . . 1 Matter Fused 1 | . . . 1 Overload Shots . | . . . . Overflow Damage 49 | . 5 . 44 Projectiles 8 | . . . 8 Explosions 41 | . 5 . 36 Melee . | . . . . Knockbacks 1 | . . . 1 Impact . | . . . . Kinetic 1 | . . . 1 Secondary . | . . . . Self-Inflicted Damage 169 | . . 35 134 Shots 5 | . . 1 4 Rammed 14 | . . . 14 Targets Rammed 14 | . . . 14 Kicked . | . . . . Crushed . | . . . . Highest Temperature 195 | . 20 . 195 Average Temperature 69 | . 10 . 73 Received Heat Transfer 291 | . 6 . 285 Siege Activations . | . . . . Martial Activations . | . . . . Shielding Activations . | . . . . Robots Disrupted . | . . . . Combat Hostiles . | . . . . Robots Corrupted . | . . . . Combat Hostiles . | . . . . Parts Fried . | . . . . Impact Corruptions . | . . . . Robots Melted . | . . . . Combat Hostiles . | . . . . Parts Melted . | . . . . Heat Transferred 494 | . . . 494 Parts Sabotaged . | . . . . Parts Stolen . | . . . . Parts Stripped . | . . . . Power Chain Reactions 2 | . . . 2 Alert | -11 -10 -10 -9 ------- Run | Yrd Mat Min Mat Maximum Alert Level 2 | . 1 . 2 Low Security (%) 87 | 100 97 100 51 Level 1 6 | . 2 . 24 Level 2 5 | . . . 23 Level 3 . | . . . . Level 4 . | . . . . Level 5 . | . . . . High Security . | . . . . Max Security . | . . . . Peak Influence 505 | 15 214 86 505 Initial 79 | . . 79 7 Average 71 | 2 10 31 244 Influence Increases 1128 | 55 234 91 748 Destroy 0b10 Robot/C 680 | . 160 60 460 Destroy 0b10 Robot/NC 85 | 55 . 5 25 Destroy Leader 112 | . 30 10 72 Disable Machine 75 | . . . 75 Destroy Structure 116 | . 44 16 56 Partial Spotted 15 | . . . 15 Lose Combat Pursuer 45 | . . . 45 Influence Decreases 633 | 55 28 278 272 Entered New Map 139 | . . 127 12 Time Decay 424 | 55 28 151 190 Lost Part 70 | . . . 70 Squads Dispatched 3 | . 1 . 2 Investigation . | . . . . Extermination . | . . . . Reinforcement 3 | . 1 . 2 Assault . | . . . . Garrison . | . . . . Intercept . | . . . . Searches Triggered . | . . . . Construction Impeded 1 | . . . 1 Haulers Reinforced . | . . . . Active Scanning Responses . | . . . . Cargo Convoy Interrupts . | . . . . Stealth | -11 -10 -10 -9 --------- Run | Yrd Mat Min Mat Distress Signals 3 | . . . 3 Communications Jammed . | . . . . Distress Signals . | . . . . Times Spotted 44 | . 9 3 32 Peak Tracking Total 8 | . 5 3 8 Tactical Retreats 1 | . . . 1 Traps | -11 -10 -10 -9 ------- Run | Yrd Mat Min Mat Traps Triggered . | . . . . Indirectly . | . . . . Trap Hack Attempts . | . . . . Triggered . | . . . . Disarmed . | . . . . Reprogrammed . | . . . . Reused . | . . . . Traps Extracted . | . . . . Installed . | . . . . Triggered . | . . . . Machines | -11 -10 -10 -9 ---------- Run | Yrd Mat Min Mat Machines Disabled 6 | . 1 . 5 Max in Single Turn 2 | . 1 . 2 Machines Repaired . | . . . . Machines Dismantled . | . . . . Machines Sabotaged . | . . . . Overloaded Fab Kills . | . . . . Hacking | -11 -10 -10 -9 --------- Run | Yrd Mat Min Mat Machines Accessed 2 | . 1 . 1 Terminals 2 | . 1 . 1 Fabricators . | . . . . Repair Stations . | . . . . Recycling Units . | . . . . Scanalyzers . | . . . . Garrison Access . | . . . . Total Hacks 3 | . 1 . 2 Successful 1 | . . . 1 Failed 2 | . 1 . 1 Catastrophic 2 | . 1 . 1 Database Lockouts . | . . . . Manual 1 | . 1 . . Terminals 3 | . 1 . 2 Fabricators . | . . . . Repair Stations . | . . . . Recycling Units . | . . . . Scanalyzers . | . . . . Garrison Access . | . . . . Terminal Hacks 1 | . . . 1 Zone Layout 1 | . . . 1 Fabricator Hacks . | . . . . Repair Station Hacks . | . . . . Recycling Unit Hacks . | . . . . Scanalyzer . | . . . . Garrison Access Hacks . | . . . . Unauthorized Hacks . | . . . . Terminals . | . . . . Fabricators . | . . . . Repair Stations . | . . . . Recycling Units . | . . . . Scanalyzers . | . . . . Garrison Access . | . . . . Data Cores Recovered . | . . . . Used . | . . . . Hacking Detections 2 | . 1 . 1 Full Trace Events . | . . . . Feedback Events . | . . . . Feedback Blocked . | . . . . Robot Schematics Acquired . | . . . . Robots Built . | . . . . Authchips . | . . . . Time . | . . . . Total Robot Build Rating . | . . . . Part Schematics Acquired . | . . . . Parts Built . | . . . . Authchips . | . . . . Time . | . . . . Total Part Build Rating . | . . . . Part Studies Acquired . | . . . . Parts Repaired . | . . . . Time . | . . . . Parts Recycled . | . . . . Recycled Matter . | . . . . Retrieved Matter . | . . . . Retrieved Components . | . . . . Parts Scanalyzed . | . . . . Part Schematics Acquired . | . . . . Parts Damaged . | . . . . Bothacking | -11 -10 -10 -9 ------------ Run | Yrd Mat Min Mat Used RIF Installer . | . . . . Robots Hacked 1 | . . . 1 Non-combat 1 | . . . 1 Combat . | . . . . Robot Hacks Applied 1 | . . . 1 no_distress 1 | . . . 1 Relay Couplers Released . | . . . . Fabnet Peak Effective % . | . . . . Robots Rewired . | . . . . Allies Hacked . | . . . . Hacks Repelled . | . . . . Allies | -11 -10 -10 -9 -------- Run | Yrd Mat Min Mat Total Allies . | . . . . Largest Group . | . . . . Highest-Rated Group . | . . . . Highest-Rated Ally . | . . . . Total Orders . | . . . . Ally Attacks . | . . . . Total Damage . | . . . . Kills . | . . . . Allies Corrupted . | . . . . Allies Melted . | . . . . Intel | -11 -10 -10 -9 ------- Run | Yrd Mat Min Mat Active Infowar (turns) 1575 | 273 460 466 376 Sensors 236 | . . 8 228 Terrain 1123 | 205 460 458 . Seismic 977 | 273 329 . 375 Robot Analysis Total . | . . . . Derelict Logs Recovered . | . . . . Drone Launches . | . . . . Drone Recoveries . | . . . . Exploration | -11 -10 -10 -9 ------------- Run | Yrd Mat Min Mat Turns Passed 1637 | 314 460 466 397 Spaces Moved 584 | 205 121 92 166 Core 21 | 12 . . 9 Treads 126 | . . . 126 Legs . | . . . . Wheels 437 | 193 121 92 31 Hover . | . . . . Flight . | . . . . Fastest Speed 50 | 50 80 80 50 Average Speed 101 | 87 87 80 139 Slowest Speed 160 | 100 90 80 160 Overloaded Moves . | . . . . Propulsion Burnouts . | . . . . Robots Hopped . | . . . . Potential Cave-ins . | . . . . Cave-ins Triggered . | . . . . Exploration Rate (%) 22 | 5 31 34 18 Regions Visited 3 Branch Regions 1 Pre-discovered Areas . | . . . . Known Exits Taken . | . . . . Unknown Exits Taken 3 | 1 1 1 . Scrap Searched . | . . . . Spaces Dug 1 | . 1 . . Terrain Destroyed 136 | . 57 16 63 Melee . | . . . . Projectile 1 | . 1 . . AOE 135 | . 56 16 63 Terrain Rammed . | . . . . Walls Destroyed . | . . . . Machines Disabled . | . . . . Actions | -11 -10 -10 -9 --------- Run | Yrd Mat Min Mat Total 1481 | 280 460 477 264 Wait 741 | 28 319 378 16 Move 581 | 204 120 91 166 Hop . | . . . . Pick Up 13 | 6 3 . 4 Fast Attach 10 | 8 . . 2 Attach 3 | . . . 3 Detach 1 | 1 . . . Swap 22 | . 9 3 10 Drop 9 | 2 1 1 5 Fire 84 | 31 8 4 41 Melee 3 | . . . 3 Ram . | . . . . Kick . | . . . . Crush 14 | . . . 14 Escape Stasis . | . . . . Rewire . | . . . . Trap . | . . . . Miscellaneous . | . . . . Route ------- -11/Scrapyard -10/Materials (discovered 2 exits: [*Min x2]) -10/Mines -9/Materials History --------- Turn | Location | Event 5 | -11/Scrapyard | Discovered new exit (range 13) 315 | -11/Scrapyard | Entered Materials 320 | -10/Materials | Build established: Mutant 759 | -10/Materials | Discovered new exit (range 13) 765 | -10/Materials | Discovered new exit (range 12) 775 | -10/Materials | Entered Mines 784 | -10/Mines | Destroyed 8 combat bots 802 | -10/Mines | Met a Derelict bent on vengeance 1199 | -10/Mines | Discovered new exit (range 8) 1241 | -10/Mines | Entered Materials 1241 | -9/Materials | Evolved 2 slots: Propulsion x1, Utility x1 1624 | -9/Materials | Core integrity fell below 50% 1633 | -9/Materials | Core integrity fell below 20% 1638 | -9/Materials | Destroyed by Y-45 Defender with Heavy Assault Rifle Last Messages --------------- 01624_ Destroyed Hover Unit. 01624_ W-16 Scout destroyed. 01625_ U-05 Engineer lays Concrete. 01626_ Imp. Treads destroyed. 01626_ U-05 Engineer destroyed. 01627_ U-05 Engineer lays Concrete. 01629_ Grenade Launcher destroyed. 01630_ U-05 Engineer lays Concrete. 01630_ Acquired 6 matter. 01631_ U-05 Engineer lays Concrete. 01632_ Critical hit (Burn: +37). 01632_ Dropped Sml. Storage Unit. 01634_ U-05 Engineer lays Concrete. 01635_ U-05 Engineer builds a Wall. 01635_ Acquired 5 matter. 01636_ U-05 Engineer lays Concrete. 01637_ Sneak attack on U-05 Engineer. 01637_ Jacked U-05 Engineer... 01637_ U-05 Engineer lays Concrete. 01638_ T-07 Excavator is excavating. Map ----- +----------------------------------------------------+ | ?????????????????????????????????????????????????? | | ?????????????????????????????????????????????????? | | ?????????????????????????????????????????????????? | | ?????????????????????????????????????????????????? | | ?????????????????????????????????????????????????? | | ?????????????????????????????????????????????????? | | ?????????????????????????????????????????????????? | | ?????????????????????????????????????????????????? | | ?????????????????????????????????????????????????? | | ?????????????????????????????????????????????????? | | ?????????????????????????????????????????????????? | | ?????????????????????????????????????????????????? | | ???????????????????????????????????????????? ?? | | ???????????????????????????????????????????? ?? | | ???????????????????????????????????????????? #?? | | ???????????????????????????????????????????# #?? | | ???????????????????????????????????????????# #?? | | ??????????????????+#???????????????????????# #?? | | ??????????????????? # " """ """ ##???# # | | ???????????????????? # #???# # | | ????????????????????# # ##???# # | | ????????????????????# ###############????# # | | ????????????????????# #??##########??????# # | | ????????????????????# #### ## [ ######## ### | | ???????????????# t # u * !*Y ##% ### | | ????????????????# [u@ s !%Y m *%! | | ????????????????# # =%%* % Y! [ = | | ????????????????????### * ### !%] * =% | | ??????????????????????# ### = [ = # | | ??????????????????????# #?# = [ ### | | ??????????????????????# """#?# " #= | | ??????????????????????# """#?# +[% | | ??????????????????????# """#?# # | | ??????????????????????# #?# ""T"" # | | ??????????????????????########?# """"" [ | | ?????????????????????????????####+####### | | ?????????????????????????????# * #?# | | ?????????????????????????????# [ #?# | | ?????????????????????????????# #?# # | | ?????????????????????????????# %#?# # | | ?????????????????????????????# #?# # | | ???????????????????????####### *= ### # | | ???????????????????????# # =%*%+ #! | | ???????????????????????# ##### !=%### ### | | ???????????????????????# #???# % !#?# ### | | ???????????????????#############/######?# # | | ???????????????????# #??# #??????# + | | ?????????????????### #### ######## # | | ?????????????????# " + # | | ????????????????## " ############?####+#??? | +----------------------------------------------------+ Best States ------------- Heat Dissipation 28 Energy Generation 10 Energy Capacity 125 Matter Stores 300 Matter Capacity 300 Sight Range 16 Robot Scan Range 14 Terrain Scan Range 16 Terrain Scan Density 10 Armor Coverage 150 Evasion (%) 50 Recoil Reduction 2 Item Schematics ----------------- None Robot Schematics ------------------ None Fabricated ------------ Nothing Repaired ---------- Nothing Studied --------- None Alien Tech Used ----------------- None Achievements -------------- None Challenges ------------ None Game ------ Seed BiocellReactionJoltstriker Manual? 0 Play Time 00:17:02 Cumulative 260.8 hours Start 2026.06.29 @ 17:22:50 End 2026.06.29 @ 17:39:23 Sessions 1 Manual Loads 0 Difficulty Rogue Special Mode None Game No. 403 Rogue 403 Adventurer 0 Explorer 0 Win Type - Total 0 Types 0/0/0/0/0/0/0/0/0/0 Lore% 50 Gallery% 50 Achievement% 31 Wizard Run 0 Options --------- Layout 0 ASCII 0 Keyboard 0 Movement Mouse Keybinds 0 Fullscreen 1 Font 18/SmallcapsGlow Map View 76x50 Zoom Use 0% Tactical HUD 1 Map Filters NONE Filters NONE Steam 1 RUN: 1bddcdf7-723c-41fb-b313-5cbdf86ee7df